[Event "Netanya Open 2019"]
[Site "Netanya"]
[Date "2019.06.27"]
[Round "5.2"]
[White "Antipov, Mikhail Al."]
[Black "Huzman, Alexander"]
[Result "1-0"]
[ECO "C42"]
[WhiteElo "2582"]
[BlackElo "2588"]
[Annotator "ChessBase"]
[PlyCount "81"]
[EventDate "2019.06.23"]
[EventType "swiss"]
[EventCountry "ISR"]
[SourceTitle "playchess.com"]
[Source "ChessBase"]
[SourceQuality "1"]
[TimeControl "40/5400+30:1800+30"]

1. e4 {[%emt 0:00:00]} e5 {[%emt 0:00:00]} 2. Nf3 {[%emt 0:00:00]} Nf6 {[%emt 0:00:00]} 3. Nxe5 {[%emt 0:00:00]} d6 {[%emt 0:00:00]} 4. Nf3 {[%emt 0:00:00]} Nxe4 {[%emt 0:00:02]} 5. d4 {[%emt 0:00:00]} d5 {[%emt 0:00:51]} 6. Bd3 {[%emt 0:00:54]} Be7 {[%emt 0:01:30]} 7. O-O {[%emt 0:00:19]} Nc6 {[%emt 0:00:28]} 8. Nbd2 {[%emt 0:01:10]} Bf5 {[%emt 0:04:35]} 9. Re1 {[%emt 0:00:29]} Nd6 {[%emt 0:01:24]} 10. Nf1 {[%emt 0:00:14]} O-O {[%emt 0:01:37]} 11. Bf4 {[%emt 0:07:58]} Bg6 {[%emt 0:02:08]} 12. Ne3 {[%emt 0:11:52]} Be4 {[%emt 0:14:41]} 13. c3 {[%emt 0:02:12]} Re8 {[%emt 0:05:08]} 14. Bc2 {[%emt 0:20:17]} g6 {[%emt 0:11:31]} 15. a4 {[%emt 0:17:25]} Bxc2 {[%emt 0:16:18]} 16. Qxc2 {[%emt 0:00:10]} Nc4 {[%emt 0:00:04]} 17. Nxc4 {[%emt 0:08:27]} dxc4 {[%emt 0:00:36]} 18. Qe2 {[%emt 0:01:34]} Bd6 {[%emt 0:04:17]} 19. Be3 {[%emt 0:00:27]} Na5 {[%emt 0:00:17]} 20. Nd2 {[%emt 0:00:07]} Qh4 {[%emt 0:00:08]} 21. g3 {[%emt 0:00:33]} Qh5 {[%emt 0:00:06]} 22. Qxh5 {[%emt 0:01:14]} gxh5 {[%emt 0:01:31]} 23. Kg2 {[%emt 0:10:54]} f6 {[%emt 0:05:54]} 24. Kf3 {[%emt 0:03:37]} Kf7 {[%emt 0:06:29]} 25. Bf4 {[%emt 0:03:20]} Bxf4 {[%emt 0:04:18]} 26. gxf4 {[%emt 0:03:27]} Rxe1 {[%emt 0:01:29]} 27. Rxe1 {[%emt 0:00:01]} Rd8 {[%emt 0:00:07]} 28. Nf1 {[%emt 0:02:10]} c5 {[%emt 0:01:54]} 29. dxc5 {[%emt 0:00:32]} Nb3 {[%emt 0:00:10]} 30. Re4 {[%emt 0:03:45]} Rd1 {[%emt 0:02:23]} 31. Ne3 {[%emt 0:00:10]} Nd2+ {[%emt 0:00:12]} 32. Ke2 {[%emt 0:00:04]} Nxe4 {[%emt 0:00:03]} 33. Kxd1 {[%emt 0:00:07]} Nxc5 {[%emt 0:00:27]} 34. a5 {[%emt 0:00:12]} Ke6 {[%emt 0:03:44]} 35. Nxc4 {[%emt 0:00:29]} Kd5 {[%emt 0:01:56]} 36. Nd2 {[%emt 0:01:56]} Nd3 {[%emt 0:01:13]} 37. b4 {[%emt 0:00:05]} Nxf2+ {[%emt 0:01:49]} 38. Ke2 {[%emt 0:00:05]} Ne4 {[%emt 0:00:47]} 39. c4+ {[%emt 0:01:45]} Kd4 {[%emt 0:00:06]} 40. Nxe4 {[%emt 0:00:03]} Kxe4 {[%emt 0:02:37]} 41. c5 {[%emt 0:30:09]} 1-0

[Event "Netanya Open 2019"]
[Site "Netanya"]
[Date "2019.06.27"]
[Round "5.3"]
[White "Gorodetzky, David"]
[Black "Dvoirys, Semen I."]
[Result "1-0"]
[ECO "D85"]
[WhiteElo "2461"]
[BlackElo "2502"]
[Annotator "ChessBase"]
[PlyCount "67"]
[EventDate "2019.06.23"]
[EventType "swiss"]
[EventCountry "ISR"]
[SourceTitle "playchess.com"]
[Source "ChessBase"]
[SourceQuality "1"]
[TimeControl "40/5400+30:1800+30"]

1. d4 {[%emt 0:00:09]} Nf6 {[%emt 0:00:00]} 2. c4 {[%emt 0:01:02]} g6 {[%emt 0:00:00]} 3. Nc3 {[%emt 0:00:07]} d5 {[%emt 0:00:00]} 4. cxd5 {[%emt 0:00:05]} Nxd5 {[%emt 0:00:00]} 5. e4 {[%emt 0:00:46]} Nxc3 {[%emt 0:00:05]} 6. bxc3 {[%emt 0:00:07]} Bg7 {[%emt 0:00:04]} 7. Nf3 {[%emt 0:01:20]} c5 {[%emt 0:00:06]} 8. Rb1 {[%emt 0:05:39]} O-O {[%emt 0:00:08]} 9. Be2 {[%emt 0:00:11]} Qa5 {[%emt 0:00:36]} 10. O-O {[%emt 0:19:43]} Qxa2 {[%emt 0:00:16]} 11. Bg5 {[%emt 0:02:08]} Re8 {[%emt 0:00:11]} 12. Bb5 {[%emt 0:06:43]} Bd7 {[%emt 0:04:03]} 13. Bxd7 {[%emt 0:04:27]} Nxd7 {[%emt 0:00:02]} 14. Rxb7 {[%emt 0:00:11]} Nf6 {[%emt 0:00:06]} 15. Qd3 {[%emt 0:13:07]} cxd4 {[%emt 0:01:14]} 16. cxd4 {[%emt 0:00:57]} Rab8 {[%emt 0:23:55]} 17. Rfb1 {[%emt 0:06:53]} Rxb7 {[%emt 0:08:18]} 18. Rxb7 {[%emt 0:00:09]} a5 {[%emt 0:01:38]} 19. h3 {[%emt 0:03:03]} h6 {[%emt 0:10:54]} 20. Bxf6 {[%emt 0:11:46]} exf6 {[%emt 0:01:00]} 21. d5 {[%emt 0:00:27]} a4 {[%emt 0:12:23]} 22. Qb5 {[%emt 0:06:04]} Rd8 {[%emt 0:06:42]} 23. Qb6 {[%emt 0:04:23]} Rf8 {[%emt 0:01:25]} 24. d6 {[%emt 0:03:48]} Qe6 {[%emt 0:07:29]} 25. Re7 {[%emt 0:05:46]} Qc8 {[%emt 0:12:06]} 26. d7 {[%emt 0:00:38]} Qa8 {[%emt 0:01:17]} 27. Qb5 {[%emt 0:01:30]} Rd8 {[%emt 0:01:24]} 28. Re8+ {[%emt 0:00:26]} Bf8 {[%emt 0:00:00]} 29. Rxd8 {[%emt 0:00:18]} Qxd8 {[%emt 0:00:04]} 30. Qxa4 {[%emt 0:00:04]} Qc7 {[%emt 0:01:30]} 31. g3 {[%emt 0:00:39]} Bc5 {[%emt 0:00:33]} 32. Kg2 {[%emt 0:01:31]} Bb6 {[%emt 0:00:06]} 33. Qa8+ {[%emt 0:01:23]} Kg7 {[%emt 0:00:07]} 34. Qd5 {[%emt 0:00:13]} 1-0

[Event "Netanya Open 2019"]
[Site "Netanya"]
[Date "2019.06.27"]
[Round "5.8"]
[White "Zubov, Alexander"]
[Black "Abergel, Thal"]
[Result "1-0"]
[ECO "D20"]
[WhiteElo "2597"]
[BlackElo "2450"]
[Annotator "ChessBase"]
[PlyCount "127"]
[EventDate "2019.06.23"]
[EventType "swiss"]
[EventCountry "ISR"]
[SourceTitle "playchess.com"]
[Source "ChessBase"]
[SourceQuality "1"]
[TimeControl "40/5400+30:1800+30"]

1. d4 {[%emt 0:00:00]} d5 {[%emt 0:00:00]} 2. c4 {[%emt 0:00:00]} dxc4 {[%emt 0:00:00]} 3. e3 {[%emt 0:00:21]} b5 {[%emt 0:00:15]} 4. a4 {[%emt 0:00:32]} b4 {[%emt 0:00:17]} 5. Bxc4 {[%emt 0:00:50]} e6 {[%emt 0:02:24]} 6. Qf3 {[%emt 0:02:56]} c6 {[%emt 0:00:07]} 7. Qe2 {[%emt 0:01:29]} Nf6 {[%emt 0:01:03]} 8. Nf3 {[%emt 0:00:36]} Be7 {[%emt 0:00:14]} 9. O-O {[%emt 0:01:07]} O-O {[%emt 0:00:15]} 10. e4 {[%emt 0:00:51]} a5 {[%emt 0:01:49]} 11. Nbd2 {[%emt 0:12:37]} Ba6 {[%emt 0:08:47]} 12. e5 {[%emt 0:03:12]} Nd5 {[%emt 0:07:16]} 13. Nb3 {[%emt 0:01:50]} Qb6 {[%emt 0:03:00]} 14. Bg5 {[%emt 0:00:35]} Nd7 {[%emt 0:04:34]} 15. Rfc1 {[%emt 0:06:04]} Bxc4 {[%emt 0:01:54]} 16. Qxc4 {[%emt 0:01:47]} h6 {[%emt 0:17:31]} 17. Bxe7 {[%emt 0:03:42]} Nxe7 {[%emt 0:00:02]} 18. Nfd2 {[%emt 0:04:38]} Qa7 {[%emt 0:09:59]} 19. Ne4 {[%emt 0:01:46]} Nb6 {[%emt 0:06:04]} 20. Qe2 {[%emt 0:04:07]} Rfd8 {[%emt 0:02:52]} 21. Nd6 {[%emt 0:05:49]} Nbc8 {[%emt 0:02:30]} 22. Nc4 {[%emt 0:00:44]} Rd5 {[%emt 0:00:15]} 23. Ne3 {[%emt 0:01:02]} Rd7 {[%emt 0:03:35]} 24. Rc5 {[%emt 0:06:37]} Qc7 {[%emt 0:00:47]} 25. Nc4 {[%emt 0:07:09]} Rd5 {[%emt 0:02:29]} 26. Rc1 {[%emt 0:00:03]} Rxc5 {[%emt 0:00:52]} 27. dxc5 {[%emt 0:00:24]} Nd5 {[%emt 0:00:20]} 28. Qe4 {[%emt 0:05:33]} Nce7 {[%emt 0:00:28]} 29. Rd1 {[%emt 0:01:11]} Rf8 {[%emt 0:01:36]} 30. Nd6 {[%emt 0:00:31]} Qa7 {[%emt 0:02:06]} 31. g3 {[%emt 0:01:24]} Qd7 {[%emt 0:04:05]} 32. Re1 {[%emt 0:02:17]} Qa7 {[%emt 0:01:38]} 33. Kg2 {[%emt 0:01:32]} f5 {[%emt 0:02:50]} 34. exf6 {[%emt 0:01:21]} Rxf6 {[%emt 0:00:03]} 35. Ne8 {[%emt 0:12:32]} Rg6 {[%emt 0:00:45]} 36. Nd6 {[%emt 0:01:08]} Rf6 {[%emt 0:00:34]} 37. Nc4 {[%emt 0:01:49]} Ng6 {[%emt 0:00:49]} 38. Ne5 {[%emt 0:00:13]} Nxe5 {[%emt 0:03:48]} 39. Qxe5 {[%emt 0:00:02]} Qf7 {[%emt 0:00:32]} 40. Qe2 {[%emt 0:07:31]} Qg6 {[%emt 0:09:36]} 41. Kf1 {[%emt 0:31:20]} Qf5 {[%emt 0:07:35]} 42. Nd4 {[%emt 0:00:00]} Qh3+ {[%emt 0:04:02]} 43. Kg1 {[%emt 0:00:00]} Nf4 {[%emt 0:08:36]} 44. Qf3 {[%emt 0:00:00]} Nd5 {[%emt 0:01:24]} 45. Qe4 {[%emt 0:00:00]} Qh5 {[%emt 0:04:07]} 46. Nxc6 {[%emt 0:00:00]} Kh8 {[%emt 0:02:32]} 47. Nd4 {[%emt 0:00:00]} Qf7 {[%emt 0:01:10]} 48. Nxe6 {[%emt 0:00:00]} Nc7 {[%emt 0:00:44]} 49. Nxc7 {[%emt 0:00:00]} Qxc7 {[%emt 0:00:03]} 50. Qe7 {[%emt 0:00:00]} Qxe7 {[%emt 0:01:20]} 51. Rxe7 {[%emt 0:00:00]} Rf5 {[%emt 0:00:09]} 52. c6 {[%emt 0:00:00]} Rc5 {[%emt 0:00:05]} 53. c7 {[%emt 0:00:00]} Kh7 {[%emt 0:00:02]} 54. Kg2 {[%emt 0:00:00]} Kg6 {[%emt 0:00:04]} 55. Kf3 {[%emt 0:00:00]} Kf6 {[%emt 0:00:02]} 56. Rd7 {[%emt 0:00:00]} g6 {[%emt 0:00:23]} 57. Ke4 {[%emt 0:00:00]} Ke6 {[%emt 0:01:06]} 58. Rg7 {[%emt 0:00:00]} Kd6 {[%emt 0:00:13]} 59. b3 {[%emt 0:00:00]} Re5+ {[%emt 0:00:34]} 60. Kd3 {[%emt 0:00:00]} Rd5+ {[%emt 0:00:02]} 61. Ke2 {[%emt 0:00:00]} Re5+ {[%emt 0:00:09]} 62. Kf1 {[%emt 0:00:00]} Rc5 {[%emt 0:00:06]} 63. Rxg6+ {[%emt 0:00:00]} Kd5 {[%emt 0:00:25]} 64. Rg7 {[%emt 0:01:11]} 1-0

[Event "Netanya Open 2019"]
[Site "Netanya"]
[Date "2019.06.27"]
[Round "5.9"]
[White "Mindlin, Alon"]
[Black "Mikhalevski, Victor"]
[Result "0-1"]
[ECO "B22"]
[WhiteElo "2454"]
[BlackElo "2579"]
[Annotator "ChessBase"]
[PlyCount "86"]
[EventDate "2019.06.23"]
[EventType "swiss"]
[EventCountry "ISR"]
[SourceTitle "playchess.com"]
[Source "ChessBase"]
[SourceQuality "1"]
[TimeControl "40/5400+30:1800+30"]

1. Nf3 {[%emt 0:00:00]} g6 {[%emt 0:00:36]} 2. e4 {[%emt 0:01:34]} c5 {[%emt 0:00:12]} 3. c3 {[%emt 0:00:42]} Nf6 {[%emt 0:04:30]} 4. e5 {[%emt 0:02:04]} Nd5 {[%emt 0:01:08]} 5. d4 {[%emt 0:01:45]} cxd4 {[%emt 0:00:36]} 6. cxd4 {[%emt 0:01:22]} Bg7 {[%emt 0:00:52]} 7. Bc4 {[%emt 0:02:45]} Nb6 {[%emt 0:00:16]} 8. Bb3 {[%emt 0:00:35]} d5 {[%emt 0:02:37]} 9. exd6 {[%emt 0:05:14]} Qxd6 {[%emt 0:00:24]} 10. O-O {[%emt 0:01:48]} O-O {[%emt 0:00:38]} 11. Nc3 {[%emt 0:12:44]} Bg4 {[%emt 0:05:14]} 12. h3 {[%emt 0:03:17]} Bxf3 {[%emt 0:00:14]} 13. Qxf3 {[%emt 0:00:02]} Nc6 {[%emt 0:00:12]} 14. Be3 {[%emt 0:00:45]} Qb4 {[%emt 0:10:03]} 15. Rfd1 {[%emt 0:09:59]} Rad8 {[%emt 0:04:16]} 16. Ne2 {[%emt 0:05:15]} e6 {[%emt 0:04:14]} 17. Rac1 {[%emt 0:02:41]} Nd5 {[%emt 0:04:24]} 18. Nc3 {[%emt 0:04:58]} Nxe3 {[%emt 0:01:00]} 19. fxe3 {[%emt 0:00:26]} Na5 {[%emt 0:04:34]} 20. Ne4 {[%emt 0:00:23]} Nxb3 {[%emt 0:05:43]} 21. axb3 {[%emt 0:01:05]} b6 {[%emt 0:01:23]} 22. Rc7 {[%emt 0:04:19]} Qxb3 {[%emt 0:05:43]} 23. Rxa7 {[%emt 0:00:08]} e5 {[%emt 0:05:48]} 24. d5 {[%emt 0:05:20]} f5 {[%emt 0:00:32]} 25. Ng5 {[%emt 0:02:51]} e4 {[%emt 0:01:01]} 26. Rxg7+ {[%emt 0:05:21]} Kxg7 {[%emt 0:00:07]} 27. Ne6+ {[%emt 0:00:04]} Kg8 {[%emt 0:00:38]} 28. Qe2 {[%emt 0:00:06]} Rxd5 {[%emt 0:00:30]} 29. Rxd5 {[%emt 0:00:09]} Qxd5 {[%emt 0:00:05]} 30. Nxf8 {[%emt 0:00:03]} Kxf8 {[%emt 0:01:33]} 31. h4 {[%emt 0:12:49]} Qd3 {[%emt 0:12:27]} 32. Qe1 {[%emt 0:00:31]} Kf7 {[%emt 0:02:29]} 33. Qc1 {[%emt 0:00:55]} Qd6 {[%emt 0:01:15]} 34. Qc3 {[%emt 0:01:51]} Qc5 {[%emt 0:01:27]} 35. Qb3+ {[%emt 0:00:58]} Kg7 {[%emt 0:00:15]} 36. Kh2 {[%emt 0:00:30]} Qd6+ {[%emt 0:02:14]} 37. g3 {[%emt 0:02:26]} Qd2+ {[%emt 0:05:18]} 38. Kh3 {[%emt 0:00:36]} Qe1 {[%emt 0:00:15]} 39. Kg2 {[%emt 0:00:29]} Qe2+ {[%emt 0:00:16]} 40. Kg1 {[%emt 0:00:07]} b5 {[%emt 0:01:44]} 41. h5 {[%emt 0:36:44]} Qd3 {[%emt 0:33:25]} 42. Qe6 {[%emt 0:02:12]} Qxe3+ {[%emt 0:00:13]} 43. Kh2 {[%emt 0:00:21]} Qf2+ {[%emt 0:06:38]} 0-1

[Event "Netanya Open 2019"]
[Site "Netanya"]
[Date "2019.06.27"]
[Round "5.10"]
[White "Sivuk, Vitaly"]
[Black "Erenberg, Ariel"]
[Result "1/2-1/2"]
[ECO "A05"]
[WhiteElo "2547"]
[BlackElo "2434"]
[Annotator "ChessBase"]
[PlyCount "102"]
[EventDate "2019.06.23"]
[EventType "swiss"]
[EventCountry "ISR"]
[SourceTitle "playchess.com"]
[Source "ChessBase"]
[SourceQuality "1"]
[TimeControl "40/5400+30:1800+30"]

1. Nf3 {[%emt 0:00:00]} Nf6 {[%emt 0:00:00]} 2. g3 {[%emt 0:00:00]} e6 {[%emt 0:01:04]} 3. Bg2 {[%emt 0:00:00]} d5 {[%emt 0:00:30]} 4. O-O {[%emt 0:00:11]} b5 {[%emt 0:04:35]} 5. d3 {[%emt 0:02:01]} Bb7 {[%emt 0:05:20]} 6. c4 {[%emt 0:00:13]} bxc4 {[%emt 0:02:39]} 7. dxc4 {[%emt 0:00:12]} Nbd7 {[%emt 0:01:52]} 8. cxd5 {[%emt 0:00:33]} Nxd5 {[%emt 0:03:38]} 9. Bg5 {[%emt 0:05:30]} Be7 {[%emt 0:04:13]} 10. Bxe7 {[%emt 0:00:17]} Qxe7 {[%emt 0:00:05]} 11. Nbd2 {[%emt 0:02:53]} O-O {[%emt 0:00:31]} 12. Rc1 {[%emt 0:00:39]} c5 {[%emt 0:01:23]} 13. a3 {[%emt 0:08:26]} Rfc8 {[%emt 0:07:31]} 14. Nc4 {[%emt 0:06:47]} Ba6 {[%emt 0:07:17]} 15. Nfd2 {[%emt 0:08:02]} N7b6 {[%emt 0:09:03]} 16. b3 {[%emt 0:02:35]} Rab8 {[%emt 0:03:06]} 17. Qc2 {[%emt 0:02:03]} Nxc4 {[%emt 0:05:34]} 18. Nxc4 {[%emt 0:01:55]} Bxc4 {[%emt 0:02:14]} 19. Qxc4 {[%emt 0:02:37]} Nb6 {[%emt 0:00:09]} 20. Qa6 {[%emt 0:01:03]} g6 {[%emt 0:02:00]} 21. Rc2 {[%emt 0:06:18]} Rc7 {[%emt 0:01:42]} 22. Rfc1 {[%emt 0:00:20]} Rbc8 {[%emt 0:01:47]} 23. e3 {[%emt 0:04:57]} h5 {[%emt 0:10:28]} 24. h4 {[%emt 0:00:11]} Qd6 {[%emt 0:00:38]} 25. Bf1 {[%emt 0:02:36]} Qd5 {[%emt 0:02:08]} 26. Rc3 {[%emt 0:00:35]} Kg7 {[%emt 0:03:30]} 27. Qb5 {[%emt 0:12:14]} Qd6 {[%emt 0:03:47]} 28. Qa6 {[%emt 0:03:51]} Kg8 {[%emt 0:03:55]} 29. R3c2 {[%emt 0:03:42]} Qd5 {[%emt 0:03:15]} 30. Bc4 {[%emt 0:01:35]} Qd6 {[%emt 0:03:24]} 31. Be2 {[%emt 0:02:51]} Qd5 {[%emt 0:00:12]} 32. Qb5 {[%emt 0:01:58]} Qd6 {[%emt 0:02:03]} 33. Rd1 {[%emt 0:02:18]} Qe7 {[%emt 0:00:53]} 34. Qa6 {[%emt 0:01:31]} Rc6 {[%emt 0:01:21]} 35. Rdc1 {[%emt 0:00:50]} Nd5 {[%emt 0:02:06]} 36. Qa5 {[%emt 0:01:26]} Qd6 {[%emt 0:01:15]} 37. Kg2 {[%emt 0:02:41]} R6c7 {[%emt 0:01:12]} 38. Qa6 {[%emt 0:05:42]} Qb6 {[%emt 0:01:19]} 39. b4 {[%emt 0:01:53]} c4 {[%emt 0:00:06]} 40. Qxb6 {[%emt 0:03:49]} Nxb6 {[%emt 0:00:18]} 41. Kf3 {[%emt 0:03:49]} Kf8 {[%emt 0:06:31]} 42. e4 {[%emt 0:01:09]} e5 {[%emt 0:04:51]} 43. Ke3 {[%emt 0:00:10]} Ke7 {[%emt 0:00:21]} 44. f4 {[%emt 0:03:28]} f6 {[%emt 0:02:51]} 45. Rc3 {[%emt 0:01:38]} Kf8 {[%emt 0:09:10]} 46. fxe5 {[%emt 0:08:44]} fxe5 {[%emt 0:00:06]} 47. Bd1 {[%emt 0:00:22]} Rd8 {[%emt 0:04:18]} 48. a4 {[%emt 0:02:33]} Rd4 {[%emt 0:00:40]} 49. Bb3 {[%emt 0:05:50]} Rcd7 {[%emt 0:02:12]} 50. Bxc4 {[%emt 0:02:32]} Nxa4 {[%emt 0:00:07]} 51. R3c2 {[%emt 0:01:30]} Nb6 {[%emt 0:00:39]} 1/2-1/2

[Event "Netanya Open 2019"]
[Site "Netanya"]
[Date "2019.06.27"]
[Round "5.11"]
[White "Shubin, Kirill"]
[Black "Rozentalis, Eduardas"]
[Result "1/2-1/2"]
[ECO "B13"]
[WhiteElo "2426"]
[BlackElo "2540"]
[Annotator "ChessBase"]
[PlyCount "127"]
[EventDate "2019.06.23"]
[EventType "swiss"]
[EventCountry "ISR"]
[SourceTitle "playchess.com"]
[Source "ChessBase"]
[SourceQuality "1"]
[TimeControl "40/5400+30:1800+30"]

1. e4 {[%emt 0:00:00]} c6 {[%emt 0:00:00]} 2. d4 {[%emt 0:00:00]} d5 {[%emt 0:00:00]} 3. exd5 {[%emt 0:00:00]} cxd5 {[%emt 0:00:00]} 4. Bd3 {[%emt 0:00:00]} Nc6 {[%emt 0:00:42]} 5. c3 {[%emt 0:00:00]} Nf6 {[%emt 0:00:16]} 6. Bf4 {[%emt 0:00:06]} Bg4 {[%emt 0:00:28]} 7. Qb3 {[%emt 0:00:05]} Qd7 {[%emt 0:00:29]} 8. Nd2 {[%emt 0:00:06]} e6 {[%emt 0:00:08]} 9. Ngf3 {[%emt 0:00:04]} Bd6 {[%emt 0:00:07]} 10. Bxd6 {[%emt 0:03:36]} Qxd6 {[%emt 0:00:08]} 11. O-O {[%emt 0:00:14]} O-O {[%emt 0:00:22]} 12. Rfe1 {[%emt 0:00:13]} Bxf3 {[%emt 0:01:50]} 13. Nxf3 {[%emt 0:00:11]} Rab8 {[%emt 0:00:17]} 14. a4 {[%emt 0:04:04]} Qc7 {[%emt 0:03:27]} 15. Qc2 {[%emt 0:04:06]} Rfc8 {[%emt 0:01:19]} 16. Qe2 {[%emt 0:00:06]} a6 {[%emt 0:01:04]} 17. h4 {[%emt 0:06:41]} Na5 {[%emt 0:05:45]} 18. Ne5 {[%emt 0:07:36]} Nc4 {[%emt 0:00:47]} 19. Bxc4 {[%emt 0:04:57]} dxc4 {[%emt 0:00:55]} 20. a5 {[%emt 0:00:52]} Nd7 {[%emt 0:00:26]} 21. Qf3 {[%emt 0:11:24]} Nxe5 {[%emt 0:01:43]} 22. Rxe5 {[%emt 0:00:03]} b6 {[%emt 0:03:01]} 23. Rae1 {[%emt 0:07:12]} bxa5 {[%emt 0:01:56]} 24. d5 {[%emt 0:01:15]} Rb5 {[%emt 0:16:12]} 25. R5e3 {[%emt 0:01:02]} Rxb2 {[%emt 0:06:52]} 26. dxe6 {[%emt 0:00:06]} fxe6 {[%emt 0:00:06]} 27. Rxe6 {[%emt 0:02:01]} Rf8 {[%emt 0:02:00]} 28. Re8 {[%emt 0:00:36]} Qf7 {[%emt 0:00:14]} 29. Rxf8+ {[%emt 0:01:05]} Qxf8 {[%emt 0:00:09]} 30. Qd5+ {[%emt 0:00:10]} Kh8 {[%emt 0:00:03]} 31. Qc5 {[%emt 0:00:11]} Rb8 {[%emt 0:04:46]} 32. Qxf8+ {[%emt 0:07:27]} Rxf8 {[%emt 0:00:39]} 33. Re5 {[%emt 0:01:06]} Rb8 {[%emt 0:06:15]} 34. Rxa5 {[%emt 0:00:15]} Rb1+ {[%emt 0:01:45]} 35. Kh2 {[%emt 0:00:03]} Rc1 {[%emt 0:00:08]} 36. Rc5 {[%emt 0:00:04]} h6 {[%emt 0:00:03]} 37. Rxc4 {[%emt 0:00:03]} a5 {[%emt 0:00:12]} 38. h5 {[%emt 0:00:40]} a4 {[%emt 0:00:11]} 39. Rxa4 {[%emt 0:00:02]} Rxc3 {[%emt 0:00:04]} 40. f3 {[%emt 0:00:14]} Kh7 {[%emt 0:00:39]} 41. Ra7 {[%emt 0:30:06]} Kg8 {[%emt 0:31:13]} 42. Kh3 {[%emt 0:00:13]} Rb3 {[%emt 0:00:37]} 43. Kg4 {[%emt 0:00:27]} Rb4+ {[%emt 0:00:42]} 44. f4 {[%emt 0:00:04]} Rb2 {[%emt 0:00:15]} 45. g3 {[%emt 0:00:10]} Rb3 {[%emt 0:00:03]} 46. Ra4 {[%emt 0:00:13]} Kf7 {[%emt 0:00:21]} 47. Kh4 {[%emt 0:00:05]} Rc3 {[%emt 0:01:06]} 48. g4 {[%emt 0:00:59]} Rb3 {[%emt 0:05:20]} 49. g5 {[%emt 0:00:36]} hxg5+ {[%emt 0:00:39]} 50. fxg5 {[%emt 0:00:04]} Rb8 {[%emt 0:01:05]} 51. g6+ {[%emt 0:01:44]} Kg8 {[%emt 0:00:24]} 52. Ra7 {[%emt 0:00:31]} Rc8 {[%emt 0:00:07]} 53. Kg5 {[%emt 0:00:07]} Rb8 {[%emt 0:00:23]} 54. Kf5 {[%emt 0:00:10]} Rc8 {[%emt 0:00:22]} 55. Ke6 {[%emt 0:00:09]} Rb8 {[%emt 0:00:57]} 56. Ke7 {[%emt 0:00:24]} Rc8 {[%emt 0:00:14]} 57. Rd7 {[%emt 0:00:06]} Ra8 {[%emt 0:00:08]} 58. Rd8+ {[%emt 0:00:07]} Rxd8 {[%emt 0:00:04]} 59. Kxd8 {[%emt 0:00:02]} Kh8 {[%emt 0:00:13]} 60. Ke8 {[%emt 0:00:04]} Kg8 {[%emt 0:00:05]} 61. Ke7 {[%emt 0:00:04]} Kh8 {[%emt 0:00:04]} 62. h6 {[%emt 0:00:04]} Kg8 {[%emt 0:00:03]} 63. h7+ {[%emt 0:00:05]} Kh8 {[%emt 0:00:30]} 64. Ke6 {[%emt 0:00:30]} 1/2-1/2

[Event "Netanya Open 2019"]
[Site "Netanya"]
[Date "2019.06.27"]
[Round "5.12"]
[White "Kogan, Arthur"]
[Black "Kantsler, Boris"]
[Result "1/2-1/2"]
[ECO "B06"]
[WhiteElo "2535"]
[BlackElo "2420"]
[Annotator "ChessBase"]
[PlyCount "53"]
[EventDate "2019.06.23"]
[EventType "swiss"]
[EventCountry "ISR"]
[SourceTitle "playchess.com"]
[Source "ChessBase"]
[SourceQuality "1"]
[TimeControl "40/5400+30:1800+30"]

1. e4 {[%emt 1:30:30]} g6 {[%emt 0:01:08]} 2. d4 {[%emt 0:00:00]} Bg7 {[%emt 0:00:02]} 3. Nc3 {[%emt 0:00:00]} d6 {[%emt 0:00:46]} 4. Bg5 {[%emt 0:00:00]} a6 {[%emt 0:00:35]} 5. Qd2 {[%emt 0:00:00]} b5 {[%emt 0:00:29]} 6. f3 {[%emt 0:00:00]} Nd7 {[%emt 0:03:02]} 7. Nge2 {[%emt 0:00:00]} c5 {[%emt 0:03:43]} 8. dxc5 {[%emt 0:00:00]} Nxc5 {[%emt 0:05:04]} 9. Nd4 {[%emt 0:00:00]} Bb7 {[%emt 0:01:31]} 10. O-O-O {[%emt 0:00:00]} Rc8 {[%emt 0:05:18]} 11. Kb1 {[%emt 0:00:00]} Qa5 {[%emt 0:10:40]} 12. h4 {[%emt 0:00:00]} h5 {[%emt 0:03:45]} 13. a3 {[%emt 0:00:00]} Nd7 {[%emt 0:06:51]} 14. Nb3 {[%emt 0:00:00]} Qc7 {[%emt 0:00:23]} 15. Nd5 {[%emt 0:00:00]} Bxd5 {[%emt 0:01:39]} 16. exd5 {[%emt 0:00:00]} Ngf6 {[%emt 0:00:06]} 17. c3 {[%emt 0:00:00]} Nb6 {[%emt 0:00:59]} 18. Bxf6 {[%emt 0:00:00]} Bxf6 {[%emt 0:03:24]} 19. f4 {[%emt 0:00:00]} Nc4 {[%emt 0:12:44]} 20. Bxc4 {[%emt 0:00:00]} Qxc4 {[%emt 0:05:55]} 21. Na5 {[%emt 0:00:00]} Qe4+ {[%emt 0:00:31]} 22. Ka2 {[%emt 0:00:00]} O-O {[%emt 0:00:19]} 23. g3 {[%emt 0:00:48]} Rc5 {[%emt 0:04:34]} 24. Rhe1 {[%emt 0:03:29]} Qf5 {[%emt 0:03:05]} 25. Qd3 {[%emt 0:00:41]} Qxd3 {[%emt 0:05:38]} 26. Rxd3 {[%emt 0:00:13]} Rfc8 {[%emt 0:00:27]} 27. Re4 {[%emt 0:03:03]} 1/2-1/2

[Event "Netanya Open 2019"]
[Site "Netanya"]
[Date "2019.06.27"]
[Round "5.13"]
[White "Baron, Tal"]
[Black "Birnboim, Nathan"]
[Result "1/2-1/2"]
[ECO "A58"]
[WhiteElo "2524"]
[BlackElo "2379"]
[Annotator "ChessBase"]
[PlyCount "70"]
[EventDate "2019.06.23"]
[EventType "swiss"]
[EventCountry "ISR"]
[SourceTitle "playchess.com"]
[Source "ChessBase"]
[SourceQuality "1"]
[TimeControl "40/5400+30:1800+30"]

1. d4 {[%emt 0:00:00]} Nf6 {[%emt 0:00:39]} 2. c4 {[%emt 0:00:00]} c5 {[%emt 0:01:24]} 3. d5 {[%emt 0:00:00]} b5 {[%emt 0:01:19]} 4. Nf3 {[%emt 0:00:00]} g6 {[%emt 0:01:10]} 5. cxb5 {[%emt 0:00:00]} Bg7 {[%emt 0:00:47]} 6. Nc3 {[%emt 0:00:08]} O-O {[%emt 0:01:01]} 7. e4 {[%emt 0:00:10]} d6 {[%emt 0:00:35]} 8. Be2 {[%emt 0:08:39]} a6 {[%emt 0:00:36]} 9. bxa6 {[%emt 0:00:12]} Bxa6 {[%emt 0:01:20]} 10. O-O {[%emt 0:00:05]} Nbd7 {[%emt 0:00:44]} 11. Re1 {[%emt 0:03:09]} Qc7 {[%emt 0:05:22]} 12. Bf4 {[%emt 0:21:18]} Ng4 {[%emt 0:05:46]} 13. Rc1 {[%emt 0:03:51]} Rfb8 {[%emt 0:03:00]} 14. b3 {[%emt 0:00:29]} Qa7 {[%emt 0:09:40]} 15. Nd2 {[%emt 0:01:49]} Nge5 {[%emt 0:00:54]} 16. a4 {[%emt 0:06:13]} Nd3 {[%emt 0:03:24]} 17. Bxd3 {[%emt 0:01:43]} Bxd3 {[%emt 0:00:05]} 18. Nf3 {[%emt 0:00:47]} Ba6 {[%emt 0:11:10]} 19. e5 {[%emt 0:00:06]} Rb4 {[%emt 0:05:41]} 20. Bg3 {[%emt 0:00:32]} Qb6 {[%emt 0:03:09]} 21. exd6 {[%emt 0:04:39]} exd6 {[%emt 0:00:21]} 22. Ne4 {[%emt 0:01:39]} Rxb3 {[%emt 0:00:25]} 23. Nxd6 {[%emt 0:02:18]} Rd3 {[%emt 0:00:30]} 24. Qe2 {[%emt 0:01:18]} Nf6 {[%emt 0:13:02]} 25. Rb1 {[%emt 0:04:40]} Rb3 {[%emt 0:03:05]} 26. Qc2 {[%emt 0:05:46]} c4 {[%emt 0:07:19]} 27. Nd2 {[%emt 0:02:54]} Rxb1 {[%emt 0:00:21]} 28. Rxb1 {[%emt 0:00:02]} Qc5 {[%emt 0:00:51]} 29. N2xc4 {[%emt 0:02:46]} Nxd5 {[%emt 0:01:42]} 30. h3 {[%emt 0:10:14]} Nc3 {[%emt 0:03:13]} 31. Rb3 {[%emt 0:00:27]} Qd4 {[%emt 0:04:14]} 32. Rb4 {[%emt 0:04:09]} Nd5 {[%emt 0:02:09]} 33. Rb1 {[%emt 0:01:55]} Nc3 {[%emt 0:00:16]} 34. Rb4 {[%emt 0:00:27]} Nd5 {[%emt 0:01:17]} 35. Rb1 {[%emt 0:01:43]} Nc3 {[%emt 0:00:09]} 1/2-1/2